fUSD/lending_fUSD_20251224
["ID","MTS","AMOUNT","RATE_DAILY","PERIOD"]
[399673230,1766604632019,-160.11436807,0.00013939,2]
[399673232,1766604632028,-337.94586026,0.00013939,2]
[399673234,1766604632038,-500.0,0.00013939,2]
[399673236,1766604632048,-500.0,0.00013939,2]
[399673238,1766604632058,-500.0,0.00013939,2]
[399673240,1766604632068,-500.0,0.00013939,2]
[399673241,1766604632078,-165.69193847,0.00013939,2]
[399673250,1766604632157,-334.30806153,0.00013939,2]
[399673252,1766604632167,-176.3095245,0.00013939,2]
[399673253,1766604632177,-170.09376054,0.00013939,2]
[399673254,1766604632187,-200.28583672,0.00013939,2]
[399673255,1766604632197,-500.0,0.00013939,2]
[399673256,1766604632207,-500.0,0.00013939,2]
[399673257,1766604632216,-500.0,0.00013939,2]
[399673258,1766604632226,-500.0,0.00013939,2]
[399673259,1766604632236,-500.0,0.00013939,2]
[399673260,1766604632246,-500.0,0.00013939,2]
[399673261,1766604632256,-500.0,0.00013939,2]
[399673262,1766604632266,-383.385905,0.00013939,2]
[399673263,1766604632276,-320.11551344,0.00013939,2]
[399673264,1766604632287,-264.94821064,0.00013939,2]
[399673265,1766604632297,-5408.3900347,0.0001394,2]
[399673266,1766604632311,-1996.856654,0.0001394,2]
[399673267,1766604632324,-638.67352101,0.0001394,2]
[399673268,1766604632336,-3372.79841062,0.0001394,2]
[399673269,1766604632347,-805.848,0.0001394,2]
[399673270,1766604637871,-957168.82001015,0.0001394,2]
[399673271,1766604637881,-1200.0,0.00014016,2]
[399673272,1766604637891,-54654.92469056,0.00014017,2]
[399673273,1766604637901,-600.0,0.00014038,2]
[399673274,1766604637911,-250.0,0.00014038,2]
[399673275,1766604637921,-600.0,0.00014038,2]
[399673276,1766604637931,-250.0,0.00014038,2]
[399673277,1766604637941,-600.0,0.00014039,2]
[399673278,1766604637952,-17825.10812245,0.0001404,2]
[399673279,1766604637967,-2500.0,0.0001404,2]
[399673280,1766604637978,-500.0,0.000141,2]
[399673281,1766604637989,-299.99,0.00014105,2]
[399673282,1766604638000,-150.99,0.00014105,2]
[399673283,1766604638011,-500.0,0.00014105,2]
[399673284,1766604638021,-7622.43,0.00014117,2]
[399673285,1766604638032,-9999.99,0.00014117,2]
[399673286,1766604638042,-9999.99,0.00014117,2]
[399673287,1766604638052,-4999.99,0.00014117,2]
[399673288,1766604638062,-1577.15,0.00014117,2]
[399673289,1766604638072,-6489.74,0.00014117,2]
[399673290,1766604638083,-150.99,0.00014117,2]
[399673291,1766604638094,-9698.03,0.00014117,2]
[399673292,1766604638104,-1000.0,0.00014118,2]
[399673293,1766604638114,-201.0916735,0.00014132,2]
[399673294,1766604638124,-629.02416028,0.00014139,2]
[399673296,1766604638134,-327.18979253,0.00014139,2]
[399673297,1766604638145,-511.62107373,0.00014139,2]
[399673299,1766604638155,-500.0,0.00014139,2]
[399673302,1766604638165,-506.0686599,0.00014139,2]
[399673304,1766604638176,-500.0,0.00014139,2]
[399673306,1766604638186,-500.0,0.00014139,2]
[399673308,1766604638198,-500.0,0.00014139,2]
[399673310,1766604638209,-871.58,0.00014139,2]
[399673312,1766604638219,-500.0,0.00014139,2]
[399673314,1766604638229,-500.0,0.00014139,2]
[399673316,1766604638240,-345.61944789,0.00014139,2]
[399673318,1766604638250,-500.0,0.00014139,2]
[399673320,1766604638260,-500.0,0.00014139,2]
[399673322,1766604638270,-500.0,0.00014139,2]
[399673324,1766604638280,-1337.8623743,0.00014139,2]
[399673326,1766604638291,-465.83516481,0.00014139,2]
[399673328,1766604638300,-298.5174458,0.00014139,2]
[399673330,1766604638311,-500.0,0.00014139,2]
[399673333,1766604638326,-500.0,0.00014139,2]
[399673335,1766604638336,-500.0,0.00014139,2]
[399673337,1766604638347,-500.0,0.00014139,2]
[399673339,1766604638357,-628.42658532,0.0001414,2]
[399673341,1766604638368,-341.16073738,0.0001414,2]
[399673343,1766604638378,-898.08433789,0.0001414,2]
[399673345,1766604638389,-178.40612798,0.0001414,2]
[399673347,1766604638399,-248.0,0.00014172,2]
[399673350,1766604638410,-200.0,0.00014183,2]
[399673352,1766604638421,-500.0,0.00014184,2]
[399673354,1766604638432,-500.0,0.00014184,2]
[399673356,1766604638443,-500.0,0.00014184,2]
[399673358,1766604638454,-500.0,0.00014184,2]
[399673360,1766604638463,-186.24487987,0.00014194,2]
[399673362,1766604638474,-304.0,0.00014201,2]
[399673364,1766604638483,-312.0,0.00014229,2]
[399673366,1766604638493,-246.0,0.00014257,2]
[399673369,1766604638504,-1951.0,0.00014263,2]
[399673371,1766604638514,-1018.0,0.00014292,2]
[399673373,1766604638524,-382.0,0.0001432,2]
[399673375,1766604638533,-823.31808289,0.00014342,2]
[399673377,1766604638543,-294.0,0.00014349,2]
[399673379,1766604638554,-17825.10812243,0.00014358,2]
[399673381,1766604638563,-1505.0,0.00014377,2]
[399673383,1766604638573,-500.0,0.00014379,2]
[399673385,1766604638583,-871.58,0.00014413,2]
[399673387,1766604638593,-3933.70575324,0.0001451,2]
[399673389,1766604638603,-500.0,0.00014653,2]
[399673391,1766604638614,-17825.10812243,0.00014676,2]
[399673393,1766604638624,-871.58,0.00014687,2]
[399673395,1766604638634,-183.18,0.00014793,2]
[399673397,1766604638646,-304.45282569,0.00014927,2]
[399673399,1766604638657,-871.58,0.00014961,2]
[399673401,1766604638667,-177.95989573,0.00014983,2]
[399673403,1766604638677,-500.0,0.00014993,2]
[399673406,1766604638692,-500.0,0.00014993,2]
[399673408,1766604638702,-500.0,0.00014993,2]
[399673410,1766604638714,-17825.10812243,0.00014993,2]
[399673412,1766604638726,-5014.92,0.00014999,2]
[399673414,1766604638735,-2041.47960317,0.00015,2]
[399673416,1766604638745,-7947.26999932,0.00015,2]
[399673418,1766604638756,-21363.10346556,0.00015,2]
[399673420,1766604638767,-1155.1798605,0.00015,2]
[399673422,1766604638778,-33595.71545948,0.00015,2]
[399673424,1766604638789,-255.0,0.00015053,2]
[399673426,1766604638799,-300.0,0.00015068,2]
[399673429,1766604638811,-195.0,0.00015068,2]
[399673430,1766604638821,-2500.0,0.00015068,2]
[399673433,1766604638832,-300.0,0.00015068,2]
[399673435,1766604638844,-300.0,0.00015068,2]
[399673437,1766604638856,-150.96,0.00015077,2]
[399673439,1766604638868,-370.37,0.00015102,2]
[399673441,1766604638879,-515.53085816,0.00015109,2]
[399673443,1766604638890,-500.0,0.00015109,2]
[399673445,1766604638901,-500.0,0.00015109,2]
[399673447,1766604638912,-500.0,0.00015109,2]
[399673449,1766604638923,-500.0,0.00015109,2]
[399673451,1766604638933,-522.793359,0.00015109,2]
[399673453,1766604638943,-500.0,0.00015109,2]
[399673455,1766604638954,-500.0,0.00015109,2]
[399673457,1766604638965,-546.71036452,0.00015109,2]
[399673460,1766604638976,-500.0,0.00015109,2]
[399673462,1766604638986,-183.91,0.00015159,2]
[399673464,1766604638996,-500.0,0.00015173,2]
[399673466,1766604639008,-500.0,0.00015173,2]
[399673468,1766604639019,-353.92874992,0.00015173,2]
[399673470,1766604639029,-500.0,0.00015173,2]
[399673472,1766604639039,-500.0,0.00015173,2]
[399673475,1766604639054,-871.58,0.00015235,2]
[399673477,1766604639064,-420.0,0.00015271,2]
[399673479,1766604639074,-420.0,0.00015271,2]
[399673481,1766604639084,-200.0,0.00015276,2]
[399673483,1766604639094,-207.4,0.00015276,2]
[399673485,1766604639104,-215.0738,0.00015276,2]
[399673487,1766604639120,-223.0315306,0.00015276,2]
[399673489,1766604639130,-231.28369723,0.00015276,2]
[399673491,1766604639141,-322.78312333,0.00015276,2]
[399673493,1766604639154,-239.84119403,0.00015276,2]
[399673495,1766604639165,-500.0,0.00015276,2]
[399673497,1766604639177,-248.71531821,0.00015276,2]
[399673499,1766604639188,-721.12765535,0.00015276,2]
[399673501,1766604639199,-257.91778498,0.00015276,2]
[399673503,1766604639211,-500.0,0.00015276,2]
[399673505,1766604639223,-267.46074303,0.00015276,2]
[399673508,1766604639235,-500.0,0.00015276,2]
[399673510,1766604639247,-277.35679052,0.00015276,2]
[399673512,1766604639258,-500.0,0.00015276,2]
[399673514,1766604639270,-500.0,0.00015276,2]
[399673516,1766604639282,-500.0,0.00015276,2]
[399673518,1766604639295,-151.0,0.00015276,2]
[399673520,1766604639307,-500.0,0.00015276,2]
[399673522,1766604639317,-500.0,0.00015276,2]
[399673524,1766604639328,-500.0,0.00015276,2]
[399673526,1766604639338,-151.0,0.00015276,2]
[399673529,1766604639349,-500.0,0.00015276,2]
[399673531,1766604639361,-414.81438464,0.00015276,2]
[399673533,1766604639372,-500.0,0.00015276,2]
[399673535,1766604639383,-578.20924308,0.00015276,2]
[399673537,1766604639394,-209.40437684,0.00015276,2]
[399673539,1766604639404,-500.0,0.00015276,2]
[399673542,1766604639418,-500.0,0.00015276,2]
[399673543,1766604639429,-500.0,0.00015276,2]
[399673546,1766604639440,-500.0,0.00015276,2]
[399673548,1766604639451,-500.0,0.00015276,2]
[399673550,1766604639462,-162.42297638,0.00015276,2]
[399673552,1766604639471,-500.0,0.00015276,2]
[399673554,1766604639481,-500.0,0.00015276,2]
[399673556,1766604639491,-322.6107,0.00015276,2]
[399673558,1766604639500,-500.0,0.00015276,2]
[399673560,1766604639510,-500.0,0.00015276,2]
[399673562,1766604639520,-500.0,0.00015276,2]
[399673564,1766604639530,-500.0,0.00015276,2]
[399673566,1766604639540,-500.0,0.00015276,2]
[399673568,1766604639549,-500.0,0.00015276,2]
[399673570,1766604639560,-500.0,0.00015276,2]
[399673572,1766604639570,-500.0,0.00015276,2]
[399673574,1766604639580,-250.0,0.00015276,2]
[399673576,1766604639589,-500.0,0.00015276,2]
[399673578,1766604639599,-250.0,0.00015276,2]
[399673580,1766604639612,-500.0,0.00015276,2]
[399673582,1766604639622,-543.0,0.00015276,2]
[399673584,1766604639631,-250.0,0.00015276,2]
[399673586,1766604639641,-500.0,0.00015276,2]
[399673588,1766604639652,-500.0,0.00015276,2]
[399673591,1766604639663,-250.0,0.00015276,2]
[399673592,1766604639673,-500.0,0.00015276,2]
[399673595,1766604639683,-226.41712887,0.00015276,2]
[399673597,1766604639693,-500.0,0.00015276,2]
[399673599,1766604639703,-500.0,0.00015276,2]
[399673601,1766604639716,-500.0,0.00015276,2]
[399673603,1766604639727,-250.0,0.00015276,2]
[399673605,1766604639738,-250.0,0.00015276,2]
[399673607,1766604639748,-504.50965357,0.00015276,2]
[399673609,1766604639758,-500.0,0.00015276,2]
[399673611,1766604639768,-250.0,0.00015276,2]
[399673613,1766604639779,-250.0,0.00015276,2]
[399673615,1766604639791,-500.0,0.00015276,2]
[399673618,1766604639803,-250.0,0.00015276,2]
[399673621,1766604639814,-250.0,0.00015276,2]
[399673624,1766604639824,-250.0,0.00015276,2]
[399673627,1766604639834,-250.0,0.00015276,2]
[399673630,1766604639844,-250.0,0.00015276,2]
[399673633,1766604639854,-250.0,0.00015276,2]
[399673636,1766604639863,-250.0,0.00015276,2]
[399673639,1766604639873,-250.0,0.00015276,2]
[399673642,1766604639883,-250.0,0.00015276,2]
[399673645,1766604639892,-250.0,0.00015276,2]
[399673648,1766604639902,-250.0,0.00015276,2]
[399673651,1766604639912,-250.0,0.00015276,2]
[399673654,1766604639922,-250.0,0.00015276,2]
[399673657,1766604639932,-250.0,0.00015276,2]
[399673660,1766604639942,-250.0,0.00015276,2]
[399673663,1766604639952,-250.0,0.00015276,2]
[399673666,1766604639962,-250.0,0.00015276,2]
[399673669,1766604639971,-250.0,0.00015276,2]
[399673672,1766604639981,-250.0,0.00015276,2]
[399673675,1766604640002,-250.0,0.00015276,2]
[399673677,1766604640014,-250.0,0.00015276,2]
[399673680,1766604640024,-250.0,0.00015276,2]
[399673683,1766604640034,-208.5647437,0.00015276,2]
[399673686,1766604640045,-250.0,0.00015276,2]
[399673690,1766604640055,-574.12855637,0.00015276,2]
[399673693,1766604640065,-250.0,0.00015276,2]
[399673697,1766604640076,-250.0,0.00015276,2]
[399673700,1766604640087,-620.0,0.00015276,2]
[399673703,1766604640097,-153.19657101,0.00015276,2]
[399673706,1766604640107,-150.0,0.00015288,2]
[399673709,1766604640118,-150.0,0.00015288,2]
[399673712,1766604640128,-150.0,0.00015288,2]
[399673715,1766604640139,-150.0,0.00015288,2]
[399673718,1766604640149,-150.0,0.00015288,2]
[399673721,1766604640158,-150.0,0.00015288,2]
[399673724,1766604640169,-150.0,0.00015288,2]
[399673727,1766604640179,-150.0,0.00015288,2]
[399673730,1766604640189,-179.31223623,0.00015288,2]
[399673733,1766604640199,-150.0,0.00015288,2]
[399673736,1766604640209,-17825.10812243,0.00015311,2]
[399673739,1766604640219,-1680.0,0.00015332,2]
[399673742,1766604640229,-151.0,0.0001539,2]
[399673745,1766604640239,-506.05021686,0.000154,2]
[399673748,1766604640249,-151.0,0.00015417,2]
[399673750,1766604640260,-151.0,0.00015417,2]
[399673752,1766604640270,-195.0,0.00015418,2]
[399673754,1766604640280,-600.0,0.00015441,2]
[399673756,1766604640291,-300.0,0.00015441,2]
[399673758,1766604640300,-195.0,0.00015441,2]
[399673760,1766604640310,-600.0,0.00015442,2]
[399673762,1766604640320,-300.0,0.00015442,2]
[399673764,1766604640331,-250.0,0.00015442,2]
[399673766,1766604640341,-871.58,0.00015509,2]
[399673769,1766604640356,-591.54,0.00015515,2]
[399673772,1766604640366,-4757.34655474,0.00015556,2]
[399673774,1766604640376,-1000.0,0.0001559,2]
[399673776,1766604640386,-17825.10812243,0.00015629,2]
[399673778,1766604640396,-1000.0,0.00015721,2]
[399673780,1766604640406,-839.47657605,0.00015721,2]
[399673782,1766604640416,-1013.73048679,0.00015721,2]
[399673784,1766604640426,-1000.0,0.00015721,2]
[399673786,1766604640436,-871.58,0.00015783,2]
[399673788,1766604640447,-217.15233878,0.00015824,2]
[399673790,1766604640459,-595.37131296,0.00015824,2]
[399673792,1766604640469,-500.0,0.00015876,2]
[399673794,1766604640480,-500.0,0.00015876,2]
[399673797,1766604640490,-532.74252407,0.00015876,2]
[399673799,1766604640500,-434.95143683,0.000159,2]
[399673801,1766604640511,-150.0,0.00015947,2]
[399673803,1766604640522,-17825.10812243,0.00015947,2]
[399673805,1766604640532,-6772.25268696,0.00016,2]
[399673807,1766604640542,-215539.11468127,0.00016,2]
[399673809,1766604640552,-599.55417067,0.00016,2]
[399673811,1766604640562,-430.0,0.00016016,2]
[399673813,1766604640572,-871.58,0.00016057,2]
[399673816,1766604640583,-434.95143679,0.00016067,2]
[399673818,1766604640592,-430.0,0.00016098,2]
[399673820,1766604640602,-430.0,0.00016106,2]
[399673822,1766604640611,-186.05882105,0.00016113,2]
[399673824,1766604640621,-150.0,0.00016137,2]
[399673826,1766604640632,-150.0,0.00016137,2]
[399673828,1766604640641,-430.0,0.0001614,2]
[399673830,1766604640652,-5232.0,0.00016146,2]
[399673832,1766604640662,-9500.01,0.00016175,2]
[399673834,1766604640671,-1000.0,0.00016175,2]
[399673836,1766604640681,-115682.110782,0.000162,5]
[399673838,1766604640691,-434.95143679,0.00016233,2]
[399673840,1766604640707,-433.0,0.00016252,2]
[399673843,1766604640720,-150.32462202,0.00016261,5]
[399673845,1766604640731,-500.0,0.00016264,2]
[399673847,1766604640742,-500.0,0.00016264,2]
[399673849,1766604640752,-500.0,0.00016264,2]
[399673851,1766604640763,-500.0,0.00016264,2]
[399673897,1766604641204,-500.0,0.00016264,2]
[399673900,1766604641221,-17825.10812243,0.00016264,2]
[399673902,1766604641232,-1500.0,0.00016268,2]
[399673904,1766604641243,-430.0,0.00016279,2]
[399673906,1766604641253,-871.58,0.00016331,2]
[399673908,1766604641263,-278.08020174,0.00016372,2]
[399673910,1766604641274,-678.90832973,0.00016372,2]
[399673912,1766604641284,-434.95143679,0.000164,2]
[399673914,1766604641294,-2831.968,0.00016438,2]
[399673916,1766604641304,-302.544,0.00016438,2]
[399673918,1766604641314,-500.0,0.00016438,2]
[399673920,1766604641323,-500.0,0.00016438,2]
[399673922,1766604641333,-564.27451711,0.00016438,2]
[399673924,1766604641343,-11424.21,0.00016438,2]
[399673926,1766604641352,-13470.6,0.00016456,2]
[399673928,1766604641362,-19393.81,0.00016479,2]
[399673930,1766604641371,-500.0,0.00016534,2]
[399673932,1766604641382,-500.0,0.00016534,2]
[399673934,1766604641393,-500.0,0.00016534,2]
[399673936,1766604641403,-500.0,0.00016534,2]
[399673938,1766604641412,-196.94797677,0.00016541,2]
[399673940,1766604641422,-183.91,0.00016549,2]
[399673942,1766604641432,-434.95143679,0.00016567,2]
[399673944,1766604641441,-150.96,0.00016576,2]
[399673946,1766604641451,-17825.10812243,0.00016582,2]
[399673948,1766604641460,-1008.0,0.000166,2]
[399673950,1766604641470,-871.58,0.00016605,2]
[399673952,1766604641479,-287.61899177,0.00016645,2]
[399673954,1766604641489,-334.5472959,0.00016645,2]
[399673956,1766604641499,-543.0,0.00016645,2]
[399673958,1766604641508,-789.97391259,0.00016645,2]
[399673960,1766604641518,-1036.98669577,0.0001666,2]
[399673962,1766604641527,-1500.87,0.00016667,2]
[399673964,1766604641537,-150.0,0.00016699,2]
[399673966,1766604641547,-150.0,0.00016699,2]
[399673968,1766604641556,-500.0,0.00016699,2]
[399673970,1766604641566,-155.24950802,0.00016699,2]
[399673972,1766604641575,-150.0,0.00016699,2]
[399673973,1766604641584,-150.0,0.00016699,2]
[399673974,1766604641595,-150.0,0.00016699,2]
[399673975,1766604641605,-150.0,0.00016699,2]
[399673976,1766604641615,-150.0,0.00016699,2]
[399673977,1766604641625,-500.0,0.00016699,2]
[399673978,1766604641635,-150.0,0.00016699,2]
[399673979,1766604641645,-500.0,0.00016699,2]
[399673980,1766604641655,-150.0,0.00016699,2]
[399673981,1766604641665,-150.0,0.00016699,2]
[399673982,1766604641674,-500.0,0.00016699,2]
[399673983,1766604641684,-150.0,0.00016699,2]
[399673984,1766604641693,-150.0,0.00016699,2]
[399673985,1766604641703,-1050.035264,0.000167,2]
[399673986,1766604641715,-300.0,0.00016707,2]
[399673987,1766604641726,-164.84,0.00016712,2]
[399673988,1766604641735,-150.0,0.00016726,2]
[399673989,1766604641745,-150.0,0.00016726,2]
[399673990,1766604641755,-500.0,0.00016726,2]
[399673991,1766604641765,-150.0,0.00016726,2]
[399673993,1766604641775,-150.0,0.00016726,2]
[399673994,1766604641785,-150.0,0.00016726,2]
[399673995,1766604641795,-500.0,0.00016726,2]
[399673996,1766604641804,-500.0,0.00016726,2]
[399673997,1766604641813,-500.0,0.00016726,2]
[399673998,1766604641823,-150.0,0.00016726,2]
[399673999,1766604641832,-4952.0,0.00016727,2]
[399674001,1766604641843,-587.0,0.00016731,2]
[399674004,1766604641854,-587.0,0.00016731,2]
[399674006,1766604641864,-434.95143679,0.00016733,2]
[399674008,1766604641873,-300.0,0.00016742,2]
[399674009,1766604641882,-150.0,0.00016744,2]
[399674011,1766604641892,-200.0,0.00016754,2]
[399674013,1766604641901,-150.0,0.00016754,2]
[399674015,1766604641911,-500.0,0.00016754,2]
[399674018,1766604641921,-203.23833486,0.00016754,2]
[399674020,1766604641931,-206.58520274,0.00016754,2]
[399674022,1766604641940,-150.0,0.00016754,2]
[399674024,1766604641949,-500.0,0.00016754,2]
[399674026,1766604641959,-511.31387808,0.00016754,2]
[399674028,1766604641969,-500.0,0.00016754,2]
[399674030,1766604641980,-210.99318264,0.00016754,2]
[399674032,1766604641989,-203.59064575,0.00016764,2]
[399674034,1766604642000,-150.0,0.00016768,2]
[399674036,1766604642009,-150.0,0.00016773,2]
[399674038,1766604642019,-430.0,0.00016776,2]
[399674040,1766604642029,-300.0,0.00016779,2]
[399674042,1766604642038,-150.0,0.00016781,2]
[399674044,1766604642048,-375.21768034,0.00016781,2]
[399674046,1766604642057,-257.8871495,0.00016781,2]
[399674048,1766604642067,-311.68,0.00016781,2]
[399674050,1766604642077,-500.0,0.00016781,2]
[399674052,1766604642086,-1000.0,0.000168,2]
[399674054,1766604642096,-150.0,0.00016809,2]
[399674056,1766604642108,-500.0,0.00016809,2]
[399674058,1766604642118,-489.72895904,0.00016816,2]
[399674060,1766604642127,-183.91,0.0001682,2]
[399674062,1766604642137,-300.0,0.00016826,2]
[399674064,1766604642146,-300.0,0.00016831,2]
[399674066,1766604642155,-202.0905593,0.00016836,2]
[399674068,1766604642164,-500.0,0.00016836,2]
[399674070,1766604642173,-150.0,0.00016837,2]
[399674072,1766604642183,-150.0,0.00016838,2]
[399674074,1766604642193,-300.0,0.00016846,2]
[399674076,1766604642203,-150.0,0.00016855,2]
[399674078,1766604642213,-300.0,0.00016856,2]
[399674080,1766604642222,-150.0,0.00016857,2]
[399674082,1766604642231,-500.0,0.00016863,2]
[399674084,1766604642241,-200.0,0.00016864,2]
[399674086,1766604642250,-2351.0,0.00016865,2]
[399674088,1766604642259,-150.0,0.00016868,2]
[399674090,1766604642269,-150.0,0.0001687,2]
[399674092,1766604642280,-871.58,0.00016879,2]
[399674094,1766604642289,-500.0,0.00016891,2]
[399674096,1766604642299,-500.0,0.00016899,2]
[399674098,1766604642308,-500.0,0.00016899,2]
[399674100,1766604642318,-197.89081002,0.000169,2]
[399674102,1766604642327,-160.19320816,0.000169,2]
[399674104,1766604642337,-10000.0,0.000169,2]
[399674106,1766604642347,-17825.10812243,0.000169,2]
[399674108,1766604642356,-434.95143679,0.000169,2]
[399674110,1766604642366,-457.1069543,0.000169,2]
[399674112,1766604642376,-216.55418196,0.000169,2]
[399674114,1766604642386,-3542.55440778,0.000169,2]
[399674116,1766604642395,-300.0,0.00016902,2]
[399674118,1766604642405,-300.0,0.00016906,2]
[399674120,1766604642415,-500.0,0.00016918,2]
[399674122,1766604642425,-300.0,0.00016929,2]
[399674124,1766604642435,-150.0,0.00016937,2]
[399674126,1766604642444,-150.0,0.00016938,2]
[399674128,1766604642453,-300.0,0.00016941,2]
[399674130,1766604642463,-150.0,0.00016944,2]
[399674132,1766604642472,-500.0,0.00016946,2]
[399674134,1766604642481,-150.0,0.00016948,2]
[399674137,1766604642491,-300.0,0.00016962,2]
[399674139,1766604642501,-300.0,0.00016962,2]
[399674141,1766604642511,-150.0,0.00016964,2]
[399674143,1766604642520,-209.0,0.00016967,2]
[399674145,1766604642530,-300.0,0.0001697,2]
[399674147,1766604642539,-300.0,0.00016972,2]
[399674149,1766604642548,-500.0,0.00016973,2]
[399674151,1766604642559,-150.0,0.00016973,2]
[399674153,1766604642568,-150.0,0.00016986,2]
[399674155,1766604642577,-150.0,0.00016986,2]
[399674157,1766604642587,-150.0,0.00016986,2]
[399674159,1766604642596,-150.0,0.00016986,2]
[399674161,1766604642606,-14893.9359148,0.00016998,2]
[399674163,1766604642615,-1034.77788098,0.00016999,5]
[399674165,1766604642625,-500.0,0.00016999,2]
[399674167,1766604642635,-500.0,0.00016999,2]
[399674169,1766604642644,-502.53521633,0.00016999,2]
[399674171,1766604642654,-300.0,0.00016999,2]
[399674173,1766604642663,-500.0,0.00016999,2]
[399674175,1766604642672,-500.0,0.00016999,2]
[399674177,1766604642682,-500.0,0.00016999,2]
[399674180,1766604642691,-500.0,0.00016999,2]
[399674182,1766604642701,-500.0,0.00016999,2]
[399674184,1766604642712,-506.44561835,0.00016999,2]
[399674186,1766604642725,-582.27761239,0.00016999,2]
[399674188,1766604642735,-500.0,0.00016999,2]
[399674190,1766604642745,-500.0,0.00016999,2]
[399674193,1766604642755,-500.0,0.00016999,2]
[399674195,1766604642766,-500.0,0.00016999,2]
[399674197,1766604642775,-500.0,0.00016999,2]
[399674199,1766604642785,-500.0,0.00016999,2]
[399674201,1766604642795,-486.79797612,0.00016999,2]
[399674203,1766604642805,-500.0,0.00016999,2]
[399674205,1766604642815,-500.0,0.00016999,2]
[399674207,1766604642824,-500.0,0.00016999,2]
[399674209,1766604642834,-500.0,0.00016999,2]
[399674211,1766604642844,-500.0,0.00016999,2]
[399674213,1766604642853,-500.0,0.00016999,2]
[399674216,1766604642864,-500.0,0.00016999,2]
[399674218,1766604642873,-500.0,0.00016999,2]
[399674220,1766604642883,-500.0,0.00016999,2]
[399674222,1766604642892,-500.0,0.00016999,2]
[399674224,1766604642902,-500.0,0.00016999,2]
[399674225,1766604642913,-500.0,0.00016999,2]
[399674228,1766604642922,-500.0,0.00016999,2]
[399674230,1766604642931,-469.51043734,0.00016999,2]
[399674232,1766604642941,-500.0,0.00016999,2]
[399674234,1766604642951,-500.0,0.00016999,2]
[399674236,1766604642960,-300.0,0.00016999,2]
[399674238,1766604642970,-500.0,0.00016999,2]
[399674240,1766604642981,-208.69,0.00016999,2]
[399674242,1766604642991,-150.0,0.00016999,2]
[399674244,1766604643000,-300.0,0.00016999,2]
[399674246,1766604643010,-300.0,0.00016999,2]
[399674248,1766604643020,-666.0,0.00016999,2]
[399674250,1766604643029,-300.0,0.00016999,2]
[399674252,1766604643039,-3155260.5016623,0.00017,2]
[399674254,1766604643048,-655058.14055221,0.00017,2]
[399674258,1766604643075,-1496.048167,0.00017,2]
[399674260,1766604643086,-2947.80744003,0.00017,2]
[399674265,1766604643126,-35518.40909,0.00017,2]
[399674267,1766604643137,-1049.16699306,0.00017,2]
[399674269,1766604643148,-751.575,0.00017,2]
[399674274,1766604643185,-534.58553686,0.00017,2]
[399674277,1766604643196,-1888.38,0.00017,2]
[399674279,1766604643207,-8612.47309849,0.00017,2]
[399674281,1766604643219,-1611.51836,0.00017,2]
[399674287,1766604643274,-452.45899995,0.00017,2]
[399674289,1766604643286,-1908.10402386,0.00017,2]
[399674324,1766604643606,-823.31808289,0.00014769,2]